Cogmind - Beta 13 @@@ ROGUE MODE // 2024.05.15 @ 23:19:16 Player: Ben Meat Bible Result: Destroyed by C-17 Slicer with Blade Saw Performance ------------- Evolutions (4) 2000 Regions Visited (10) 2000 Robots Destroyed (61) 305 Value Destroyed (1630) 1630 Prototype IDs (14) 280 Alien Tech Used (0) 0 Bonus (440) 440 TOTAL SCORE: 6655 Bonus ------- High Alert Combat Kills 12 Follower Combat Kills 74 Aligned with FarCom 300 Met Data Miner 300 Friendly Fire -246 Cogmind --------- Core Integrity 0/850 Matter 122/300 Energy 96/100 System Corruption 1% Temperature Cool (1) Movement Hovering (60) Location -6/Factory Parts ------- > --- POWER (1) -------- (None) > --- PROPULSION (5) --- Gravmag Array > --- UTILITY (6) ------ (None) > --- WEAPON (3) ------- (None) > --- INVENTORY (5) ---- Improved Heat Sink Launcher Loader Drone Bay (0/2) Peak State ------------ > --- POWER ------------ Micro Nuclear Core > --- PROPULSION ------- Improved Hover Unit Improved Hover Unit Airjet Airjet Gravmag System > --- UTILITY ---------- Small Storage Unit Improved Melee Analysis Suite Layered Light Armor Plating Hacking Suite > --- WEAPON ----------- Plasma Rifle Heavy Missile Launcher Axe > --- INVENTORY -------- Micro Nuclear Core Airjet Improved Signal Interpreter Microactuators Hacking Suite Firepult Scythe [Rating: 46] Favorites ----------- Power Light Nuclear Core Engine Light Deuterium Engine Power Core Light Nuclear Core Propulsion Airjet Wheel Wheel Hover Unit Airjet Flight Unit Flight Unit Utility Small Storage Unit Device Sensor Array Storage Small Storage Unit Processor Improved Melee Analysis Suite Hackware Hacking Suite Protection Layered Light Armor Plating Weapon Pulse Rifle Energy Gun Pulse Rifle Energy Cannon Firepult Ballistic Gun Hypervelocity Gauss Rifle Launcher Heavy Missile Launcher Slashing Weapon Katana Special Melee Weapon Improved Datajack Build | -11 -10 -10 -10 -9 -8 -7 -7 -7 -6 -6 ------- Run | Yrd Mat Min Exi Min Mat Fac Low Dat Pro Fac Slots Evolved 8 | . . . . . 4 2 . . . 2 Power . | . . . . . . . . . . . Propulsion 3 | . . . . . 3 . . . . . Utility 4 | . . . . . 1 1 . . . 2 Weapon 1 | . . . . . . 1 . . . . Parts Attached 99 | 7 13 . 4 1 32 15 . . 10 17 Power 7 | 1 1 . . . 2 2 . . 1 . Engine 2 | 1 . . . . . 1 . . . . Core 5 | . 1 . . . 2 1 . . 1 . Reactor . | . . . . . . . . . . . Propulsion 26 | 2 4 . . . 12 3 . . 1 4 Treads . | . . . . . . . . . . . Leg . | . . . . . . . . . . . Wheel 7 | 2 2 . . . 3 . . . . . Hover 12 | . 2 . . . 4 3 . . 1 2 Flight 7 | . . . . . 5 . . . . 2 Utility 27 | 2 3 . 1 1 9 5 . . 2 4 Device 9 | 1 1 . 1 . 1 . . . 1 4 Storage 3 | 1 1 . . . 1 . . . . . Processor 4 | . 1 . . . . 3 . . . . Hackware 2 | . . . . . 1 . . . 1 . Protection 9 | . . . . 1 6 2 . . . . Artifact . | . . . . . . . . . . . Weapon 39 | 2 5 . 3 . 9 5 . . 6 9 Energy Gun 17 | 2 2 . 1 . 6 1 . . 3 2 Energy Cannon 8 | . . . 2 . 2 . . . 1 3 Ballistic Gun 3 | . 1 . . . . . . . 1 1 Ballistic Cannon . | . . . . . . . . . . . Launcher 6 | . 2 . . . . 2 . . . 2 Special Weapon . | . . . . . . . . . . . Impact Weapon . | . . . . . . . . . . . Slashing Weapon 4 | . . . . . 1 1 . . 1 1 Piercing Weapon . | . . . . . . . . . . . Special Melee Weapon 1 | . . . . . . 1 . . . . Unidentified Prototypes 4 | . . . 3 . . . . . . 1 Corrupted Parts 1 | . . . . . . . . . 1 . System Corruption 1 | . . . . . . . . . 1 . Parts Lost 35 | . 3 . . . 2 2 . . 18 10 Power 3 | . . . . . 1 . . . 1 1 Propulsion 12 | . 2 . . . . 1 . . 6 3 Utility 9 | . 1 . . . 1 . . . 6 1 Weapon 11 | . . . . . . 1 . . 5 5 Highest Loss Streak 13 | . 2 . . . 2 2 . . 13 7 To Critical Strikes . | . . . . . . . . . . . Average Slot Usage (%) 70 | . 89 85 74 83 86 86 100 100 47 14 Engine 1 | . 4 . . . . 3 . . . . Core 7 | . 9 14 14 14 8 3 7 7 3 4 Wheel 8 | . 20 28 28 28 1 . . . . . Hover 15 | . 5 . . . 32 30 38 38 10 . Device 2 | . 8 . . . 2 . . . 1 1 Storage 7 | . 7 14 14 14 8 7 7 7 2 . Processor 2 | . 5 . . . . 7 7 7 1 . Hackware 3 | . . . . . 3 7 7 7 7 . Protection 4 | . . . . 12 8 7 7 7 2 . Energy Gun 7 | . 18 14 3 . 11 4 7 7 4 3 Energy Cannon 2 | . . . 10 14 1 . . . . . Ballistic Gun 1 | . 2 14 3 . . . . . 1 2 Launcher 2 | . 6 . . . . 3 7 7 2 . Slashing Weapon 2 | . . . . . 3 7 7 7 5 . Naked Turns 13 | . . . . . . . . . 13 . Heaviest Build 40 | 14 16 13 32 39 40 30 29 29 40 21 Greatest Support 39 | 20 20 20 20 20 30 39 39 39 39 20 Greatest Overweight (x) 6 | . 2 . 1 1 5 1 . . 5 6 Average Overweight (x) . | . . . . 1 . . . . . 1 Largest Inventory Capacity 8 | 8 8 8 8 8 8 8 8 8 8 5 Average Capacity 7 | 7 6 8 8 8 7 8 8 8 5 5 Most Carried 8 | . 8 8 8 8 8 8 8 8 8 4 Average Carried 6 | . 5 8 8 8 7 7 7 8 4 2 Final Capacity 8 | 8 8 8 8 8 8 8 8 8 5 5 Final Carried 8 | . 8 8 8 8 8 8 8 8 3 4 Class Distribution -------------------- 76% | Mutant 15% | Scavenger-Mutant 6% | Scout Dominant Class ---------------- Mutant | -10/Materials Mutant | -10/Mines Mutant | -10/Exiles Mutant | -9/Mines Mutant | -8/Materials Mutant | -7/Factory Scavenger-Mutant | -7/Lower Caves Scavenger-Mutant | -7/Data Miner Mutant | -6/Proximity Caves Mutant | -6/Factory Resources | -11 -10 -10 -10 -9 -8 -7 -7 -7 -6 -6 ----------- Run | Yrd Mat Min Exi Min Mat Fac Low Dat Pro Fac Matter Collected 1216 | 143 325 . . 22 338 97 20 . 181 90 Remotely . | . . . . . . . . . . . Salvage Created 2049 | 113 348 . . . 492 328 11 . 535 222 Parts 126 | 2 29 . . . 28 29 2 . 14 22 Haulers Intercepted 4 | . 1 . . . 1 2 . . . . Recyclers Shooed . | . . . . . . . . . . . Parts Field Recycled . | . . . . . . . . . . . Retrieved Matter . | . . . . . . . . . . . Parts Self-Destructed 14 | . . . . . . . . . 14 . Prevented . | . . . . . . . . . . . Kills | -11 -10 -10 -10 -9 -8 -7 -7 -7 -6 -6 ------- Run | Yrd Mat Min Exi Min Mat Fac Low Dat Pro Fac Combat Hostiles Destroyed 36 | . 9 . . . 7 2 . . 9 9 Melee 8 | . . . . . 3 2 . . 3 . Guns 14 | . 8 . . . 3 . . . . 3 AOE 12 | . 1 . . . . . . . 5 6 Classes Destroyed 14 | 2 7 . . . 3 1 . . . 1 Worker 3 | . 1 . . . 1 1 . . . . Builder 4 | . 1 . . . 2 1 . . . . Tunneler 2 | 1 . . . . . 1 . . . . Hauler 4 | . 1 . . . 1 2 . . . . Recycler 2 | 1 . . . . 1 . . . . . Operator 3 | . 1 . . . 1 1 . . . . Watcher 6 | . 3 . . . 1 1 . . . 1 Swarmer 14 | . 6 . . . 2 . . . 3 3 Cutter 1 | . . . . . . . . . . 1 Grunt 11 | . 3 . . . 2 . . . 6 . Duelist 2 | . . . . . 1 1 . . . . Sentry 1 | . . . . . 1 . . . . . Hunter 3 | . . . . . 1 . . . . 2 Programmer 4 | . . . . . . 1 . . . 3 Enhanced Grunt 1 | . . . . . . . . . 1 . Decomposer 1 | . . . . . . . 1 . . . Best Kill Streak 7 | 2 7 . . . 3 4 . . 3 4 Combat Bots Only 5 | . 5 . . . 3 1 . . 3 4 Max Kills in Single Turn 2 | 1 1 . . . 1 1 1 . 2 2 Gunslinging . | . . . . . . . . . . . Exploded 2 | . 1 . . . . . . . 2 2 Melee 1 | . . . . . 1 1 . . 1 . Uniques/NPCs Destroyed . | . . . . . . . . . . . Combat | -11 -10 -10 -10 -9 -8 -7 -7 -7 -6 -6 -------- Run | Yrd Mat Min Exi Min Mat Fac Low Dat Pro Fac Hostile Shots Fired 402 | . 57 . . . 37 59 . . 111 138 Missed 146 | . 14 . . . 13 28 . . 39 52 Damage Taken 4051 | . 409 . . . 370 367 . . 1362 1543 Core 1546 | . 96 . . . 105 90 . . 397 858 Absorbed by Shields . | . . . . . . . . . . . Core Remaining (%) 67 | 100 . . . 61 80 . . . 30 . Volleys Fired 123 | 7 58 . . . 15 . . . 11 32 Largest 2 | 2 2 . . . 2 . . . 2 2 Hottest 250 | 90 90 . . . 250 . . . 250 250 Shots Fired 170 | 14 78 . . . 27 . . . 16 35 Gun 147 | 14 71 . . . 26 . . . 10 26 Cannon 5 | . . . . . 1 . . . 3 1 Launcher 18 | . 7 . . . . . . . 3 8 Special . | . . . . . . . . . . . Kinetic 12 | . 4 . . . . . . . 5 3 Thermal 140 | 14 67 . . . 27 . . . 8 24 Explosive 18 | . 7 . . . . . . . 3 8 Electromagnetic . | . . . . . . . . . . . Robot Hit Streak 9 | 3 8 . . . 7 . . . 4 9 Robot Miss Streak 5 | 2 4 . . . 4 . . . 5 2 Penetration Max 1 | . . . . . . . . . 1 . Secondary Targets 1 | . 1 . . . . . . . . . Max Gunslinging Chain 1 | . 1 . . . . . . . . . Shots Hit Robots 146 | 8 46 . . . 31 16 1 . 20 24 Core Hits 92 | 3 23 . . . 15 8 1 . 24 18 Critical Kills . | . . . . . . . . . . . Critical Parts Destroyed 2 | . . . . . . . . . 1 1 Critical Strikes 5 | . 2 . . . . 1 . . 1 1 Burn 2 | . 2 . . . . . . . . . Destroy 2 | . . . . . . . . . 1 1 Sever 1 | . . . . . . 1 . . . . Melee Attacks 73 | . . . . . 25 25 1 . 20 2 Impact . | . . . . . . . . . . . Slashing 73 | . . . . . 25 25 1 . 20 2 Piercing . | . . . . . . . . . . . Sneak Attacks 13 | . . . . . 4 8 1 . . . Combat Hostiles 2 | . . . . . . 2 . . . . Follow-up Attacks . | . . . . . . . . . . . Damage Inflicted 4665 | 107 689 . . . 979 811 62 . 1055 962 Guns 1270 | 107 475 . . . 275 . . . 63 350 Cannons 81 | . . . . . . . . . 70 11 Explosions 1397 | . 214 . . . 74 . . . 508 601 Melee 1860 | . . . . . 630 811 62 . 357 . Ramming 57 | . . . . . . . . . 57 . Kinetic 61 | . 19 . . . . . . . 27 15 Thermal 1639 | 107 456 . . . 349 . . . 331 396 Explosive 1048 | . 214 . . . . . . . 283 551 Electromagnetic . | . . . . . . . . . . . Impact . | . . . . . . . . . . . Slashing 1860 | . . . . . 630 811 62 . 357 . Piercing . | . . . . . . . . . . . Highest Corruption 13 | . . . . . . 3 3 3 13 1 Average Corruption 3 | . . . . . . 2 3 3 5 1 Corruption Purged . | . . . . . . . . . . . Corruption Blocked . | . . . . . . . . . . . Effects 15 | . . . . . . 4 1 1 7 2 Message Errors 4 | . . . . . . 2 . . 2 . Matter Fused 1 | . . . . . . 1 . . . . Heat Flow Errors 2 | . . . . . . . . . 1 1 Energy Discharges 3 | . . . . . . . . 1 2 . Parts Fused 1 | . . . . . . . 1 . . . Data Loss (minor) 3 | . . . . . . 1 . . 1 1 Data Loss (major) 1 | . . . . . . . . . 1 . Overload Shots . | . . . . . . . . . . . Overflow Damage 247 | . . . . . 106 80 . . 61 . Projectiles . | . . . . . . . . . . . Explosions 8 | . . . . . . . . . 8 . Melee 239 | . . . . . 106 80 . . 53 . Knockbacks . | . . . . . . . . . . . Impact . | . . . . . . . . . . . Kinetic . | . . . . . . . . . . . Secondary . | . . . . . . . . . . . Self-Inflicted Damage 167 | . . . . . 25 . . . 80 62 Shots 8 | . . . . . 2 . . . 4 2 Rammed 24 | . . . . . . . . . 24 . Targets Rammed 24 | . . . . . . . . . 24 . Kicked . | . . . . . . . . . . . Crushed . | . . . . . . . . . . . Highest Temperature 626 | 210 432 . . . 626 . . . 555 198 Average Temperature 144 | 106 111 . . . 218 . . . 180 28 Received Heat Transfer 858 | . 132 . . . 180 84 . . 462 . Effects 18 | . 5 . . . 4 . . . 9 . Shutdowns 6 | . 2 . . . 1 . . . 3 . Energy Bleed 3 | . 1 . . . 1 . . . 1 . Interference 1 | . . . . . . . . . 1 . Matter Decay 2 | . 1 . . . . . . . 1 . Short Circuit 1 | . . . . . 1 . . . . . Damage (minor) 1 | . . . . . 1 . . . . . Damage (major) 4 | . 1 . . . . . . . 3 . Siege Activations . | . . . . . . . . . . . Robots Corrupted . | . . . . . . . . . . . Combat Hostiles . | . . . . . . . . . . . Parts Fried . | . . . . . . . . . . . Impact Corruptions 2 | . . . . . . . . . 2 . Robots Melted 3 | . . . . . 1 . . . 2 . Combat Hostiles 2 | . . . . . 1 . . . 1 . Parts Melted 12 | 1 2 . . . 2 . . . 7 . Heat Transferred 5439 | 285 1422 . . . 992 . . . 1754 986 Parts Sabotaged . | . . . . . . . . . . . Parts Stolen . | . . . . . . . . . . . Parts Stripped . | . . . . . . . . . . . Power Chain Reactions . | . . . . . . . . . . . Alert | -11 -10 -10 -10 -9 -8 -7 -7 -7 -6 -6 ------- Run | Yrd Mat Min Exi Min Mat Fac Low Dat Pro Fac Peak Influence 424 | 10 309 51 . . 281 286 . . . 424 Initial 309 | . 6 51 . . . 127 . . . 309 Average 158 | 3 134 51 . . 88 185 . . . 315 Maximum Alert Level 2 | . 1 . . . 1 1 . . . 2 Low Security (%) 66 | 100 78 100 . 100 92 66 . . . 1 Level 1 31 | . 21 . . . 7 33 . . . 87 Level 2 2 | . . . . . . . . . . 10 Level 3 . | . . . . . . . . . . . Level 4 . | . . . . . . . . . . . Level 5 . | . . . . . . . . . . . High Security . | . . . . . . . . . . . Max Security . | . . . . . . . . . . . Squads Dispatched 7 | . . . . . 1 3 . . 1 2 Investigation 1 | . . . . . . . . . 1 . Extermination 3 | . . . . . . 2 . . . 1 Reinforcement 3 | . . . . . 1 1 . . . 1 Assault . | . . . . . . . . . . . Garrison . | . . . . . . . . . . . Intercept . | . . . . . . . . . . . Searches Triggered 1 | . . . . . . . . . . 1 Construction Impeded . | . . . . . . . . . . . Haulers Reinforced . | . . . . . . . . . . . Active Scanning Responses . | . . . . . . . . . . . Cargo Convoy Interrupts . | . . . . . . . . . . . Stealth | -11 -10 -10 -10 -9 -8 -7 -7 -7 -6 -6 --------- Run | Yrd Mat Min Exi Min Mat Fac Low Dat Pro Fac Distress Signals 3 | . 2 . . . . 1 . . . . Communications Jammed . | . . . . . . . . . . . Distress Signals . | . . . . . . . . . . . Times Spotted 77 | . 16 . . . 20 12 . . 15 14 Peak Tracking Total 8 | . 6 . . . 5 6 . . 8 5 Tactical Retreats 10 | . 1 . . . 2 3 . . 2 2 Traps | -11 -10 -10 -10 -9 -8 -7 -7 -7 -6 -6 ------- Run | Yrd Mat Min Exi Min Mat Fac Low Dat Pro Fac Traps Triggered . | . . . . . . . . . . . Indirectly . | . . . . . . . . . . . Trap Hack Attempts . | . . . . . . . . . . . Triggered . | . . . . . . . . . . . Disarmed . | . . . . . . . . . . . Reprogrammed . | . . . . . . . . . . . Reused . | . . . . . . . . . . . Traps Extracted . | . . . . . . . . . . . Installed . | . . . . . . . . . . . Triggered . | . . . . . . . . . . . Machines | -11 -10 -10 -10 -9 -8 -7 -7 -7 -6 -6 ---------- Run | Yrd Mat Min Exi Min Mat Fac Low Dat Pro Fac Machines Disabled 4 | . 1 . . . 1 . . . . 2 Max in Single Turn 1 | . 1 . . . 1 . . . . 1 Machines Repaired . | . . . . . . . . . . . Machines Dismantled . | . . . . . . . . . . . Machines Sabotaged . | . . . . . . . . . . . Overloaded Fab Kills . | . . . . . . . . . . . Hacking | -11 -10 -10 -10 -9 -8 -7 -7 -7 -6 -6 --------- Run | Yrd Mat Min Exi Min Mat Fac Low Dat Pro Fac Machines Accessed 17 | . 2 . . . 4 6 . 4 1 . Terminals 11 | . 2 . . . 4 4 . . 1 . Fabricators 1 | . . . . . . 1 . . . . Repair Stations . | . . . . . . . . . . . Recycling Units . | . . . . . . . . . . . Scanalyzers 1 | . . . . . . 1 . . . . Garrison Access . | . . . . . . . . . . . Total Hacks 64 | . 7 . . . 9 13 . 31 4 . Successful 49 | . 5 . . . 3 6 . 31 4 . Failed 15 | . 2 . . . 6 7 . . . . Catastrophic 3 | . . . . . 3 . . . . . Database Lockouts . | . . . . . . . . . . . Manual 24 | . 7 . 1 . 9 7 . . . . Terminals 28 | . 7 . . . 9 8 . . 4 . Fabricators 2 | . . . . . . 2 . . . . Repair Stations . | . . . . . . . . . . . Recycling Units . | . . . . . . . . . . . Scanalyzers 3 | . . . . . . 3 . . . . Garrison Access . | . . . . . . . . . . . Terminal Hacks 38 | . 2 . . . . 1 . 31 4 . Record 17 | . 1 . . . . 1 . 11 4 . Part Schematic 10 | . . . . . . . . 10 . . Robot Schematic 7 | . . . . . . . . 7 . . Prototype ID Bank 3 | . . . . . . . . 3 . . Branch Access Points 1 | . 1 . . . . . . . . . Fabricator Hacks . | . . . . . . . . . . . Repair Station Hacks . | . . . . . . . . . . . Recycling Unit Hacks . | . . . . . . . . . . . Scanalyzer 3 | . . . . . . 3 . . . . Insert Component 2 | . . . . . . 2 . . . . Analyze 1 | . . . . . . 1 . . . . Garrison Access Hacks . | . . . . . . . . . . . Unauthorized Hacks 8 | . 3 . . . 3 2 . . . . Terminals 8 | . 3 . . . 3 2 . . . . Assimilate 2 | . 1 . . . 1 . . . . . Botnet 6 | . 2 . . . 2 2 . . . . Fabricators . | . . . . . . . . . . . Repair Stations . | . . . . . . . . . . . Recycling Units . | . . . . . . . . . . . Scanalyzers . | . . . . . . . . . . . Garrison Access . | . . . . . . . . . . . Data Cores Recovered 2 | . 1 . . . 1 . . . . . Used 2 | . 1 . . . 1 . . . . . Hacking Detections 12 | . 2 . . . 3 6 . . 1 . Full Trace Events 1 | . . . . . . . . . 1 . Feedback Events 1 | . . . . . . . . . 1 . Corruption 1 | . . . . . . . . . 1 . Feedback Blocked . | . . . . . . . . . . . Robot Schematics Acquired 7 | . . . . . . . . 7 . . Robots Built . | . . . . . . . . . . . Authchips . | . . . . . . . . . . . Time . | . . . . . . . . . . . Total Robot Build Rating . | . . . . . . . . . . . Part Schematics Acquired 11 | . . . . . . 1 . 10 . . Parts Built . | . . . . . . . . . . . Authchips . | . . . . . . . . . . . Time . | . . . . . . . . . . . Total Part Build Rating . | . . . . . . . . . . . Parts Repaired . | . . . . . . . . . . . Time . | . . . . . . . . . . . Parts Recycled . | . . . . . . . . . . . Recycled Matter . | . . . . . . . . . . . Retrieved Matter . | . . . . . . . . . . . Retrieved Components . | . . . . . . . . . . . Parts Scanalyzed 1 | . . . . . . 1 . . . . Part Schematics Acquired 1 | . . . . . . 1 . . . . Parts Damaged . | . . . . . . . . . . . Bothacking | -11 -10 -10 -10 -9 -8 -7 -7 -7 -6 -6 ------------ Run | Yrd Mat Min Exi Min Mat Fac Low Dat Pro Fac Used RIF Installer . | . . . . . . . . . . . Robots Hacked . | . . . . . . . . . . . Non-combat . | . . . . . . . . . . . Combat . | . . . . . . . . . . . Robot Hacks Applied . | . . . . . . . . . . . Relay Couplers Released . | . . . . . . . . . . . Fabnet Peak Effective % . | . . . . . . . . . . . Robots Rewired . | . . . . . . . . . . . Allies Hacked . | . . . . . . . . . . . Hacks Repelled . | . . . . . . . . . . . Allies | -11 -10 -10 -10 -9 -8 -7 -7 -7 -6 -6 -------- Run | Yrd Mat Min Exi Min Mat Fac Low Dat Pro Fac Total Allies 1 | . . . . . . . . . 1 . Largest Group 1 | . . . . . . . . . 1 . Highest-Rated Group 96 | . . . . . . . . . 96 . Highest-Rated Ally 96 | . . . . . . . . . 96 . Total Orders . | . . . . . . . . . . . Ally Attacks 3 | . . . . . . . . . 3 . Total Damage 146 | . . . . . . . . . 146 . Kills 2 | . . . . . . . . . 2 . Allies Corrupted . | . . . . . . . . . . . Allies Melted 1 | . . . . . . . . . 1 . Intel | -11 -10 -10 -10 -9 -8 -7 -7 -7 -6 -6 ------- Run | Yrd Mat Min Exi Min Mat Fac Low Dat Pro Fac Robot Analysis Total . | . . . . . . . . . . . Derelict Logs Recovered 4 | . . . . 1 . . 1 . 2 . Drone Launches 2 | . . . . . . . . . . 2 Drone Recoveries . | . . . . . . . . . . . Exploration | -11 -10 -10 -10 -9 -8 -7 -7 -7 -6 -6 ------------- Run | Yrd Mat Min Exi Min Mat Fac Low Dat Pro Fac Turns Passed 3404 | 54 498 9 426 118 661 555 112 41 468 462 Spaces Moved 3654 | 29 396 12 462 105 678 927 236 93 416 300 Core 384 | 2 16 . . . 2 . . . 186 178 Treads . | . . . . . . . . . . . Legs . | . . . . . . . . . . . Wheels 970 | 27 323 12 462 105 41 . . . . . Hover 2223 | . 57 . . . 632 927 236 93 230 48 Flight 77 | . . . . . 3 . . . . 74 Fastest Speed 32 | 50 56 80 80 95 48 44 44 44 44 32 Average Speed 70 | 77 79 80 90 95 61 47 44 44 83 114 Slowest Speed 350 | 80 150 80 95 95 310 112 44 44 300 350 Overloaded Moves . | . . . . . . . . . . . Propulsion Burnouts . | . . . . . . . . . . . Robots Hopped 1 | . . . . . . . . . . 1 Cave-ins Triggered . | . . . . . . . . . . . Exploration Rate (%) 39 | 4 58 4 89 43 38 23 44 70 52 8 Regions Visited 10 Branch Regions 6 Pre-discovered Areas 2 | . . . . . . . . 1 1 . Known Exits Taken 2 | . 1 . . . 1 . . . . . Unknown Exits Taken 8 | 1 . 1 1 1 . 1 1 1 1 . Scrap Searched 5 | . . . . 1 . . 1 . 3 . Spaces Dug 12 | . . . . . 3 7 . . 2 . Terrain Destroyed 83 | . 1 . . . 8 7 . . 16 51 Melee 12 | . . . . . 3 7 . . 2 . Projectile 2 | . . . . . . . . . 2 . AOE 69 | . 1 . . . 5 . . . 12 51 Terrain Rammed . | . . . . . . . . . . . Walls Destroyed . | . . . . . . . . . . . Machines Disabled . | . . . . . . . . . . . Actions | -11 -10 -10 -10 -9 -8 -7 -7 -7 -6 -6 --------- Run | Yrd Mat Min Exi Min Mat Fac Low Dat Pro Fac Total 4217 | 42 502 11 470 122 860 1009 244 92 488 377 Wait 126 | . 10 . . 17 70 11 . . 4 14 Move 3642 | 28 395 11 461 104 677 926 235 92 415 298 Hop 1 | . . . . . . . . . . 1 Pick Up 43 | . 14 . . . 8 14 4 . . 3 Fast Attach 63 | 7 6 . 4 1 20 8 . . 4 13 Attach 33 | . 4 . . . 12 7 . . 6 4 Detach 28 | . 3 . . . 12 3 . . 4 6 Swap 3 | . 3 . . . . . . . . . Drop 58 | . 9 . 5 . 21 15 4 . . 4 Fire 123 | 7 58 . . . 15 . . . 11 32 Melee 73 | . . . . . 25 25 1 . 20 2 Ram 24 | . . . . . . . . . 24 . Kick . | . . . . . . . . . . . Crush . | . . . . . . . . . . . Escape Stasis . | . . . . . . . . . . . Rewire . | . . . . . . . . . . . Trap . | . . . . . . . . . . . Miscellaneous . | . . . . . . . . . . . Route ------- -11/Scrapyard -10/Materials (discovered 4 exits: [*Mat x2] / *Min x2) -10/Mines -10/Exiles (discovered 2 exits: [*Min x2]) -9/Mines -8/Materials -7/Factory -7/Lower Caves -7/Data Miner -6/Proximity Caves -6/Factory (discovered 1 exit: [*Fac]) History --------- Turn | Location | Event 18 | -11/Scrapyard | Discovered new exit (range 15) 55 | -11/Scrapyard | Entered Materials 312 | -10/Materials | Identified exit to Mines 368 | -10/Materials | Discovered new exit (range 11) 497 | -10/Materials | Build established: Mutant 511 | -10/Materials | Discovered new exit (range 16) 553 | -10/Materials | Entered Mines 558 | -10/Mines | Deemed a non-threat by the Exiles lab entrance 559 | -10/Mines | Discovered new exit (range 5) 562 | -10/Mines | Entered Exiles 574 | -10/Exiles | Discovered new exit (range 15) 583 | -10/Exiles | Met 8R-AWN 598 | -10/Exiles | Met EX-HEX 623 | -10/Exiles | Met EX-BIN 633 | -10/Exiles | Aligned with FarCom system 634 | -10/Exiles | Given EX-Vault access code 655 | -10/Exiles | Opened EX-Vault 661 | -10/Exiles | Found Prototype Device 661 | -10/Exiles | Identified PSU Rigger 673 | -10/Exiles | Found Prototype Energy Gun 673 | -10/Exiles | Identified AWS/Thermal 676 | -10/Exiles | Found Prototype Energy Cannon 676 | -10/Exiles | Identified Firepult 724 | -10/Exiles | Warned to stay clear of 0b10 Research branches 753 | -10/Exiles | Met EX-DEC 836 | -10/Exiles | Visited The Gauntlet 978 | -10/Exiles | Discovered new exit (range 14) 988 | -10/Exiles | Left Exiles lab with Firepult 988 | -10/Exiles | Entered Mines 1007 | -9/Mines | Received a Rocket Launcher from a helpful Derelict 1025 | -9/Mines | Assembled infested the area 1030 | -9/Mines | Assisted by a Guerilla fighting off Assembled 1081 | -9/Mines | Discovered new exit (range 16) 1106 | -9/Mines | Entered Materials 1106 | -8/Materials | Evolved 4 slots: Propulsion x3, Utility x1 1107 | -8/Materials | Identified exit to Factory 1767 | -8/Materials | Entered Factory 1767 | -7/Factory | Evolved 2 slots: Utility x1, Weapon x1 2301 | -7/Factory | Discovered new exit (range 12) 2322 | -7/Factory | Entered Lower Caves 2342 | -7/Lower Caves | Learned Factory emergency access door positions 2430 | -7/Lower Caves | A Derelict revealed a hidden shortcut to meet someone special 2434 | -7/Lower Caves | Entered Data Miner 2434 | -7/Data Miner | Discovered new exit (range 6) 2443 | -7/Data Miner | Met Data Miner 2457 | -7/Data Miner | Learned location of Section 7 (-3) 2457 | -7/Data Miner | Acquired the access code to Warlord's prototype stash 2461 | -7/Data Miner | Received God Mode back door access code from Data Miner 2475 | -7/Data Miner | Entered Proximity Caves 2481 | -6/Proximity Caves | Learned 4 Factory zone layouts 2490 | -6/Proximity Caves | Learned Factory stockpile data 2492 | -6/Proximity Caves | Build established: Scavenger-Mutant 2573 | -6/Proximity Caves | Attracted the attention of an 0b10 base 2575 | -6/Proximity Caves | Spotter reported a threat 2588 | -6/Proximity Caves | Spotter reported a threat 2694 | -6/Proximity Caves | Lost 13 parts (1p6n3u3w) 2837 | -6/Proximity Caves | Core integrity fell below 50% 2857 | -6/Proximity Caves | System corruption reached 10% 2887 | -6/Proximity Caves | Lost 5 parts (3u2w) 2938 | -6/Proximity Caves | Discovered new exit (range 6) 2943 | -6/Proximity Caves | Entered Factory 2943 | -6/Factory | Evolved 2 slots: Utility x2 3143 | -6/Factory | Build established: Mutant 3293 | -6/Factory | Search patrols dispatched 3330 | -6/Factory | Core integrity fell below 50% 3363 | -6/Factory | Lost 7 parts (1p3n3w) 3363 | -6/Factory | Core integrity fell below 20% 3369 | -6/Factory | Found Launcher Loader 3386 | -6/Factory | Discovered new exit (range 6) 3405 | -6/Factory | Destroyed by C-17 Slicer with Blade Saw Last Messages --------------- Acquired Launcher Loader. U-05 Engineer builds a Wall. Acquired Gravmag Array. U-05 Engineer builds a Wall. ALERT: Suspicious intruders detected, dispatching Cutter reinforcements to area. EXIT=FOUND Knocked back. Missile Launcher destroyed. Thermal Defense Suite destroyed. Acquired Blade Saw. Knocked back. Penetrated by Slug. Knocked back. U-05 Engineer lays Concrete. Blade Saw severed. U-05 Engineer lays Concrete. ALERT: Security rotation in progress. Knocked back. U-05 Engineer lays Concrete. Map ----- +----------------------------------------------------+ | ????## ??????????????????????????????? | | #???# ??????????????????????????????? | | #???#T ??????????????????????????????? | | ###### ??????????????????????????????? | | ??????????????????????????????? | | ###+####+#######+##??????????????????????????????? | | #?# # ??????????????????????????????? | | ???????????????+?????????????????????????????????? | | ?????????????????????????????????????????????????? | | ?????????????????????????????????????????????????? | | ???????????????????????????????????????????????? | | ?????????????????????????????????????????????????? | | ????????????????????????????????????????????###### | | ????????????????????????????????????????????# | | ????????????????????????????????????????????# " | | ????????????????????????????????????????????# " | | ????????????????????????????????????????????# " | | ????????????????????????????????????????????# " | | ????????????????????????????????????????????# " | | ???????????????????????########?????????????#! | | ???????????????????????# # ###?#?????????# | | ?????????? ############ #?# #######+# | | ?????????? ### | | ????????? < | | ?????????? cc %=H #?# % | | ?????????????????#u @ = #?############+### | | ?????????????????# % ;;############ | | ?????????????????# + | | ?????????????????###; # ################ | | ???????????????????#######??????????????# """" | | ????????????????????????????????????????# """" | | ????????????????????????????????????????########## | | | | | | | | | | | | | | | | | | | | | | | | | | | | | | | | | | | | | +----------------------------------------------------+ Best States ------------- Heat Dissipation 37 Energy Generation 15 Energy Capacity 250 Matter Stores 300 Matter Capacity 300 Sight Range 18 Robot Scan Range 14 Terrain Scan Density 10 Armor Coverage 600 Core Shielding 20 Utility Shielding 66 Evasion (%) 63 Targeting Accuracy 8 Melee Accuracy 6 Core Analysis 6 Offensive Hacking 20 Item Schematics ----------------- Microactuators | -7/Factory | Scanalyzed Combat Drone Bay | -7/Data Miner | Free Lgt. Regenerative Plating | -7/Data Miner | Free Cld. Aerolev Unit | -7/Data Miner | Free Gravity Neutralizer | -7/Data Miner | Free Shock Maul | -7/Data Miner | Free Arm. Medium Treads | -7/Data Miner | Free Imp. Shock Absorption System | -7/Data Miner | Free Imp. Plasma Cutter | -7/Data Miner | Free Wave Gun | -7/Data Miner | Free Imp. Antigrav System | -7/Data Miner | Free Robot Schematics ------------------ D-53 Grenadier | -7/Data Miner | Free M-22 Extractor | -7/Data Miner | Free M-28 Smith | -7/Data Miner | Free H-55 Commando | -7/Data Miner | Free B-48 Gladiator | -7/Data Miner | Free S-27 Virus | -7/Data Miner | Free E-15 Imp | -7/Data Miner | Free Fabricated ------------ Nothing Alien Tech Used ----------------- None Achievements -------------- None Challenges ------------ None Game ------ Seed InertialMyomerMonowheel Manual? 0 Play Time 01:02:49 Cumulative 15.9 hours Start 2024.05.14 @ 21:14:02 End 2024.05.15 @ 23:19:16 Sessions 3 Manual Loads 0 Difficulty Rogue Special Mode None Game No. 22 Rogue 22 Adventurer 0 Explorer 0 Win Type - Total 0 Types 0/0/0/0/0/0/0/0/0 Lore% 18 Gallery% 23 Achievement% 23 Wizard Run 0 Options --------- Layout 0 ASCII 0 Keyboard 1 Movement Numpad Keybinds 0 Fullscreen 1 Font 18/SmallcapsGlow Map View 76x50 Zoom Use 0% Tactical HUD 0 Map Filters NONE Filters NONE Steam 1 RUN: f4a8ce20-76d1-48a5-a02c-233e1f7e9d21